bitfinex-derivatives/quotes_SOLF0:USTF0_20251117
["timestamp","ask_amount","ask_price","bid_price","bid_amount"]
[1763391817402,3.10604807,140.0,139.97,0.04748068]
[1763391817598,3.10604807,140.0,139.84,39.62]
[1763391817599,3.06,139.99,139.88,18.17357254]
[1763391817801,3.06,140.05,139.92,18.17357254]
[1763391818005,3.06,140.05,139.98,6.4351]
[1763391818218,3.06,140.16,140.0,18.17357254]
[1763391818602,0.04875023,140.09,140.02,6.4332]
[1763391819302,0.04875023,140.09,140.04,18.17357254]
[1763391819506,0.05046868,140.08,140.04,18.17357254]
[1763391819911,36.2,140.17,140.04,18.17357254]
[1763391819912,3.06,140.17,140.04,18.17357254]
[1763391820811,0.05221285,140.12,140.09,0.04914952]
[1763391822213,3.06,140.26,140.09,0.04914952]
[1763391822411,3.06,140.22,140.08,18.17357254]
[1763391822811,3.06,140.22,140.12,18.17357254]
[1763391823217,0.04652864,140.18,140.16,0.05174909]
[1763391823415,3.10652864,140.18,140.16,0.05174909]
[1763391823913,3.06,140.17,140.08,18.17357254]
[1763391824114,3.06,140.17,140.04,18.17357254]
[1763391824617,9.4871,140.16,140.04,18.17357254]
[1763391824803,0.04681019,140.11,140.09,0.04730675]
[1763391825004,0.04835742,140.11,140.09,0.04730675]
[1763391831114,3.10835742,140.11,140.09,0.04730675]
[1763391831308,3.10835742,140.11,140.0,31.77107436]
[1763391831516,3.06,140.11,140.0,31.77107436]
[1763391831710,9.4874,140.16,140.0,31.77107436]
[1763391831915,3.06,140.16,140.0,31.77107436]
[1763391832311,9.4896,140.11,140.0,38.20527436]
[1763391832518,0.04623878,140.09,140.0,31.77107436]
[1763391832720,0.05192575,140.06,140.0,31.77107436]
[1763391832920,3.06,140.15,140.08,6.4303]
[1763391833113,11.74,140.25,140.05,100.052]
[1763391833114,0.04896907,140.13,140.05,100.052]
[1763391833314,3.06,140.24,140.09,6.4301]
[1763391833315,0.04534509,140.1,140.09,6.4301]
[1763391833622,3.06,140.21,140.08,31.77107436]
[1763391833817,9.485,140.21,140.1,6.4294]
[1763391834016,3.06,140.21,140.08,31.77107436]
[1763391834517,11.74,140.25,140.13,0.04840387]
[1763391834518,3.06,140.15,140.13,0.04840387]
[1763391834721,3.11146217,140.15,140.04,31.77107436]
[1763391834916,3.06,140.15,140.01,62.0]
[1763391835122,6.4291,140.12,140.0,31.77107436]
[1763391835323,3.06,140.15,140.0,31.77107436]
[1763391835517,3.06,140.15,140.07,6.4308]
[1763391835717,0.04539335,140.12,140.07,6.4308]
[1763391835917,0.04539335,140.12,140.04,31.77107436]
[1763391836121,3.06,140.2,140.04,31.77107436]
[1763391836422,3.06,140.28,140.08,31.77107436]
[1763391836617,9.4833,140.24,140.08,31.77107436]
[1763391836818,3.06,140.24,140.08,31.77107436]
[1763391837318,0.048819,140.17,140.15,0.04812217]
[1763391837513,0.05099203,140.17,140.15,0.04698162]
[1763391841125,4.63,140.16,140.04,31.77107436]
[1763391841341,6.43,140.1,140.0,31.77107436]
[1763391841518,3.21,140.15,140.0,31.77107436]
[1763391842016,0.04745672,140.09,140.0,31.77107436]
[1763391842215,0.04617824,140.06,139.95,62.0]
[1763391842419,0.04598064,140.02,139.94,17.46]
[1763391842823,0.04598064,140.02,139.93,31.77107436]
[1763391843023,0.04509452,139.99,139.93,31.77107436]
[1763391843419,3.21,140.16,140.04,6.4322]
[1763391843730,3.21,140.21,140.01,31.77107436]
[1763391844028,3.21,140.21,140.09,31.77107436]
[1763391844233,3.21,140.21,140.05,31.77107436]
[1763391844418,3.21,140.21,140.02,6.4334]
[1763391844419,6.4295,140.11,140.02,6.4334]
[1763391844624,3.25771656,140.09,140.06,0.04889074]
[1763391844819,3.26090354,140.09,139.97,31.77107436]
[1763391845021,3.21,140.05,139.93,31.77107436]
[1763391845528,3.21,140.05,139.91,39.66]
[1763391845728,6.4336,140.02,139.91,39.66]
[1763391846026,0.04673604,139.98,139.91,39.66]
[1763391846222,99.9458,140.21,140.02,6.4331]
[1763391846223,3.21,140.1,140.02,6.4331]
[1763391846424,3.21,140.1,139.97,31.77107436]
[1763391846619,6.4333,140.03,139.93,38.20847436]
[1763391846818,112.8682,140.12,139.93,31.77107436]
[1763391846819,3.21,140.05,139.93,31.77107436]
[1763391847116,3.2558681,140.0,139.98,0.04970908]
[1763391847322,3.21,140.0,139.91,6.4382]
[1763391847532,3.21,140.0,139.89,31.77107436]
[1763391847923,3.21,140.0,139.93,6.4371]
[1763391848125,3.21,140.0,139.89,31.77107436]
[1763391848324,0.04755598,139.96,139.89,31.77107436]
[1763391849030,3.21,140.09,139.93,31.77107436]
[1763391849422,3.21,140.03,139.93,6.4371]
[1763391849624,3.21,140.03,139.89,31.77107436]
[1763391850030,0.04677119,139.97,139.95,0.04755598]
[1763391850230,0.04827435,139.97,139.95,0.04755598]
[1763391850624,99.9925,140.14,139.95,0.04755598]
[1763391850625,3.21,140.14,139.95,0.04755598]
[1763391850828,3.21,140.14,139.97,31.77107436]
[1763391851031,3.21,140.14,140.01,31.77107436]
[1763391851626,3.21,140.14,139.97,139.7681]
[1763391851627,3.21,140.14,140.02,31.77107436]
[1763391851937,39.66,140.18,139.97,39.66]
[1763391851938,3.26178312,140.09,140.06,0.04989874]
[1763391852131,3.21,140.09,139.99,31.77107436]
[1763391852336,0.04629987,140.05,140.03,0.04909481]
[1763391852532,0.05143425,140.05,140.03,0.04589479]
[1763391852834,3.21,140.14,140.03,0.04589479]
[1763391853039,99.9215,140.24,140.03,0.04589479]
[1763391853040,3.21,140.19,140.03,31.77107436]
[1763391853341,3.21,140.16,140.03,31.77107436]
[1763391853531,3.21,140.21,140.03,31.77107436]
[1763391853736,0.04667573,140.13,140.11,0.04506366]
[1763391854331,0.04667573,140.13,140.11,6.47406366]
[1763391854535,0.04667573,140.13,140.11,0.04506366]
[1763391855829,11.10527573,140.13,140.03,31.77107436]
[1763391856037,9.6386,140.13,140.03,31.77107436]
[1763391856238,3.21,140.18,140.03,31.77107436]
[1763391856438,3.21,140.18,140.08,6.4304]
[1763391856743,3.21,140.18,140.07,31.77107436]
[1763391856946,0.04948993,140.14,140.11,31.82529943]
[1763391857240,3.21,140.27,140.11,31.77107436]
[1763391857435,3.21,140.27,140.15,31.77107436]
[1763391858046,3.21,140.27,140.16,6.4265]
[1763391858047,9.6322,140.27,140.16,6.4265]
[1763391858249,0.04792188,140.22,140.2,0.04762633]
[1763391858541,0.04748567,140.22,140.2,0.04762633]
[1763391860240,3.13,140.36,140.25,6.4225]
[1763391860638,3.13,140.36,140.24,31.77107436]
[1763391860941,3.13,140.46,140.28,31.77107436]
[1763391861340,0.05428559,140.38,140.36,0.045504]
[1763391861538,3.13,140.4,140.28,31.77107436]
[1763391861734,0.04837639,140.38,140.33,0.05415592]
[1763391862138,3.17837639,140.38,140.33,0.05415592]
[1763391862544,0.04837639,140.38,140.33,0.05415592]
[1763391863236,3.17837639,140.38,140.33,0.05415592]
[1763391863447,3.17837639,140.38,140.24,31.77107436]
[1763391863448,6.4192,140.33,140.24,31.77107436]
[1763391863750,3.13,140.34,140.24,31.77107436]
[1763391864348,0.05439994,140.3,140.28,0.05130962]
[1763391864537,0.04976202,140.3,140.28,0.05083169]
[1763391864740,3.17976202,140.3,140.28,0.05083169]
[1763391864946,4.55,140.29,140.16,31.77107436]
[1763391865142,3.13,140.29,140.16,31.77107436]
[1763391865535,6.4242,140.23,140.1,39.62]
[1763391865848,3.13,140.29,140.1,39.62]
[1763391865849,3.13,140.26,140.1,39.62]
[1763391866040,0.04630874,140.18,140.15,0.05470012]
[1763391866350,0.05254421,140.18,140.15,0.05364461]
[1763391867045,3.13,140.33,140.15,0.05364461]
[1763391867251,3.13,140.29,140.17,31.77107436]
[1763391867544,3.13,140.29,140.11,31.77107436]
[1763391867748,6.4245,140.22,140.13,6.428]
[1763391867947,3.18,140.25,140.11,31.77107436]
[1763391868152,3.22581363,140.19,140.16,0.04578786]
[1763391868448,99.9078,140.26,140.07,31.77107436]
[1763391868449,3.18,140.17,140.07,31.77107436]
[1763391868655,3.18,140.17,140.03,31.77107436]
[1763391869442,0.05157266,140.11,140.09,0.05281025]
[1763391869652,99.8998,140.27,140.09,0.05281025]
[1763391869653,3.18,140.21,140.09,0.05281025]
[1763391869849,3.18,140.21,140.07,31.77107436]
[1763391870159,3.18,140.21,140.11,31.77107436]
[1763391870344,3.18,140.22,140.11,31.77107436]
[1763391870745,0.05331187,140.18,140.15,0.05361302]
[1763391871949,3.23331187,140.18,140.15,0.00361302]
[1763391872152,4.6,140.17,140.03,31.77107436]
[1763391872342,3.18,140.17,140.03,31.77107436]
[1763391873051,3.18,140.1,140.09,0.05374512]
[1763391873252,3.18,140.1,139.99,31.77107436]
[1763391873546,3.18,140.13,139.99,31.77107436]
[1763391873957,3.18,140.13,140.04,6.4321]
[1763391874155,0.05473417,140.1,140.07,0.0420916]
[1763391874346,3.18,140.17,140.03,31.77107436]
[1763391874541,0.05466436,140.1,140.07,0.0420916]
[1763391874745,0.05079088,140.1,140.07,0.0420916]
[1763391875262,131.67917436,140.26,140.07,0.0420916]
[1763391875263,3.18,140.23,140.07,31.81316596]
[1763391875444,3.18,140.23,140.07,31.77107436]
[1763391875848,9.6069,140.17,140.07,31.77107436]
[1763391876048,3.18,140.17,140.07,31.77107436]
[1763391876248,3.18,140.17,140.03,31.77107436]
[1763391876456,3.18,140.12,139.99,31.77107436]
[1763391876754,3.18,140.08,139.95,31.77107436]
[1763391876962,3.18,140.08,139.91,31.77107436]
[1763391877254,6.4332,140.03,139.93,6.4374]
[1763391877449,3.18,140.04,139.91,31.77107436]
[1763391877656,3.22925937,139.99,139.97,0.03915761]
[1763391877848,3.18,139.99,139.9,39.62]
[1763391878048,3.18,139.99,139.87,31.77107436]
[1763391878350,6.4371,139.94,139.83,31.77107436]
[1763391878651,3.18,139.95,139.79,33.8011117]
[1763391878858,0.05259383,139.88,139.8,6.4431]
[1763391879360,9.67259383,139.88,139.79,2.03003734]
[1763391879569,3.23259383,139.88,139.79,2.03003734]
[1763391879853,6.4406,139.87,139.79,2.03003734]
[1763391880055,3.18,139.84,139.79,2.03003734]
[1763391880647,0.05354279,139.85,139.79,2.03003734]
[1763391881256,3.18,139.94,139.82,31.77107436]
[1763391881465,11.18,140.05,139.82,31.77107436]
[1763391881466,3.18,140.02,139.82,131.98607436]
[1763391881650,3.18,140.02,139.86,31.77107436]
[1763391881962,3.18,140.02,139.88,6.4397]
[1763391882262,0.04833305,139.96,139.94,0.05091035]
[1763391882460,0.05447514,139.96,139.94,0.05277812]
[1763391882957,3.18,140.09,139.95,1.42]
[1763391883256,3.18,140.09,139.94,31.77107436]
[1763391883454,6.4309,140.08,139.95,6.4364]
[1763391883660,3.18,140.07,139.94,31.77107436]
[1763391884056,144.58617436,140.18,139.99,0.04572501]
[1763391884057,3.23071286,140.02,139.99,0.04572501]
[1763391884254,3.22979778,140.02,139.99,0.04579567]
[1763391884454,3.18,140.01,139.99,0.04579567]
[1763391884851,0.04979778,140.02,139.99,0.04579567]
[1763391885056,3.22979778,140.02,139.99,0.04579567]
[1763391885256,3.18,140.0,139.99,0.04579567]
[1763391886061,3.18,139.99,139.86,31.77107436]
[1763391886565,3.18,140.09,139.86,31.77107436]
[1763391886764,3.18,140.04,139.92,18.28341468]
[1763391887067,3.18,139.98,139.97,0.04737815]
[1763391887264,0.04665289,139.99,139.96,0.05197054]
[1763391887265,0.05331533,139.99,139.96,0.05197054]
[1763391887463,3.23331533,139.99,139.96,0.05197054]
[1763391887655,0.05331533,139.99,139.96,0.05197054]
[1763391888760,3.18,140.09,139.96,0.05197054]
[1763391888761,3.18,140.09,139.97,1.42]
[1763391889067,3.18,140.14,140.0,18.28341468]
[1763391889452,6.4284,140.13,140.02,6.4331]
[1763391889653,103.9418,140.21,140.0,18.28341468]
[1763391889654,4.0,140.21,140.0,18.28341468]
[1763391889854,3.18,140.19,140.04,18.28341468]
[1763391890064,3.18,140.18,140.04,18.28341468]
[1763391890268,0.04830368,140.13,140.1,0.04590345]
[1763391890565,3.22830368,140.13,140.1,0.04590345]
[1763391891167,6.4292,140.11,140.04,18.28341468]
[1763391891367,3.18,140.12,140.0,18.28341468]
[1763391891562,3.18,140.2,140.0,18.28341468]
[1763391891866,3.18,140.18,140.04,18.28341468]
[1763391892057,0.05073886,140.12,140.1,0.04647501]
[1763391892257,0.04769924,140.12,140.1,0.04647501]
[1763391892658,3.18,140.22,140.1,0.04647501]
[1763391892858,3.18,140.22,140.08,18.28341468]
[1763391893369,3.18,140.18,140.08,18.28341468]
[1763391893557,3.18,140.18,140.04,18.28341468]
[1763391893761,3.23354094,140.12,140.1,0.04887317]
[1763391893964,0.04850187,140.12,140.1,0.05376765]
[1763391894563,3.22850187,140.12,140.1,0.05376765]
[1763391895964,9.65760187,140.12,140.1,0.05376765]
[1763391896164,3.18,140.11,140.04,18.28341468]
[1763391896464,3.18,140.11,140.0,18.28341468]
[1763391896665,6.4309,140.08,140.0,18.28341468]
[1763391896866,3.18,140.11,140.0,18.28341468]
[1763391897066,3.2331461,140.07,140.04,0.04863942]
[1763391897268,3.23504012,140.07,140.04,0.047197]
[1763391897459,0.05504012,140.07,140.04,0.047197]
[1763391899060,3.20504012,140.07,140.04,0.047197]
[1763391899262,0.05504012,140.07,140.04,0.047197]
[1763391899466,3.20504012,140.07,140.04,0.047197]
[1763391900476,3.15,140.06,139.95,18.28341468]
[1763391901173,3.15,140.04,139.91,18.28341468]
[1763391901366,3.20464113,139.99,139.88,18.28341468]
[1763391901560,3.15,139.99,139.88,18.28341468]
[1763391901769,0.05041465,139.95,139.88,18.28341468]
[1763391902168,3.15,140.04,139.88,1.42]
[1763391902364,3.15,140.04,139.9,18.28341468]
[1763391902769,3.15,140.03,139.9,18.28341468]
[1763391902969,3.15,140.0,139.88,6.4395]
[1763391903169,3.15,140.0,139.93,0.04881848]
[1763391903369,3.15,139.94,139.79,2.03003734]
[1763391903672,3.15,139.89,139.79,2.03003734]
[1763391903873,3.15,139.96,139.82,18.28341468]
[1763391904278,139.696,140.05,139.82,18.28341468]
[1763391904279,0.05124715,139.9,139.86,18.28341468]
[1763391904477,39.70340996,140.07,139.89,18.28341468]
[1763391904478,3.15,140.07,139.89,18.28341468]
[1763391904684,3.15,140.12,139.94,18.28341468]
[1763391904979,3.15,140.12,139.98,18.28341468]
[1763391905278,3.15,140.06,139.95,18.28341468]
[1763391905576,0.05180479,140.02,139.99,18.32892538]
[1763391905774,0.04690364,140.02,139.99,0.05213968]
[1763391906476,3.15,140.16,140.0,1.42]
[1763391906681,3.15,140.2,140.05,18.28341468]
[1763391906978,3.15,140.17,139.95,174.9947]
[1763391907172,3.15,140.17,140.03,18.28341468]
[1763391907371,0.04659899,140.11,140.03,18.28341468]
[1763391907574,3.15,140.21,140.07,18.28341468]
[1763391908075,120.96454583,140.24,140.13,0.05341431]
[1763391908270,120.96454583,140.24,140.11,18.28341468]
[1763391908572,3.15,140.32,140.15,18.28341468]
[1763391908982,3.15,140.28,140.15,18.28341468]
[1763391909281,0.05058692,140.23,140.2,0.05326979]
[1763391909480,3.20058692,140.23,140.2,0.05326979]
[1763391909980,0.05058692,140.23,140.2,0.05326979]
[1763391910182,3.15,140.33,140.2,0.05326979]
[1763391910375,3.15,140.33,140.19,18.28341468]
[1763391910376,6.4206,140.3,140.19,18.28341468]
[1763391910683,3.15,140.33,140.19,18.28341468]
[1763391911279,0.04941827,140.27,140.25,0.05107246]
[1763391911482,9.5724,140.26,140.15,18.28341468]
[1763391911671,118.12731468,140.35,140.15,18.28341468]
[1763391911877,3.15,140.31,140.19,18.28341468]
[1763391912178,225.1882,140.4,140.23,18.28341468]
[1763391912179,3.15,140.38,140.23,18.28341468]
[1763391912589,0.05327484,140.32,140.29,0.04926038]
[1763391912775,0.04702041,140.32,140.29,0.05490405]
[1763391913586,99.7535,140.48,140.29,0.05490405]
[1763391913587,3.15,140.43,140.29,7.89570405]
[1763391913789,3.15,140.49,140.31,18.28341468]
[1763391913990,3.15,140.49,140.28,99.8865]
[1763391914283,3.15,140.49,140.25,118.19021468]
[1763391914492,6.4124,140.48,140.33,18.28341468]
[1763391914684,0.04912777,140.42,140.39,0.04755893]
[1763391914887,0.04893287,140.42,140.39,0.04698965]
[1763391915097,3.19893287,140.42,140.39,0.04698965]
[1763391915281,0.04893287,140.42,140.39,0.04698965]
[1763391915890,0.04893287,140.42,140.29,62.0]
[1763391915891,4.57,140.41,140.3,18.28341468]
[1763391916094,3.15,140.4,140.26,18.28341468]
[1763391916290,6.4166,140.39,140.26,18.28341468]
[1763391916491,3.15,140.4,140.26,18.28341468]
[1763391916797,3.15,140.37,140.26,18.28341468]
[1763391917092,3.15,140.34,140.22,18.28341468]
[1763391917281,6.4198,140.32,140.22,18.28341468]
[1763391917485,3.26,140.39,140.22,18.28341468]
[1763391917799,9.6772,140.38,140.23,6.4237]
[1763391917992,0.04489204,140.32,140.29,0.04556539]
[1763391918190,3.26,140.38,140.29,0.05224602]
[1763391918399,3.26,140.38,140.32,0.04809593]
[1763391918694,6.4203,140.31,140.19,18.28341468]
[1763391918893,0.048008,140.26,140.24,0.04989364]
[1763391919089,0.05361242,140.26,140.24,0.04989364]
[1763391920087,3.26,140.37,140.24,0.04989364]
[1763391920297,3.26,140.37,140.19,18.28341468]
[1763391920492,3.26,140.34,140.19,24.70881468]
[1763391920697,3.26,140.4,140.27,18.28341468]
[1763391920897,3.26,140.45,140.31,18.28341468]
[1763391921104,0.05389663,140.39,140.37,0.0474142]
[1763391921288,3.26,140.45,140.37,0.0474142]
[1763391921697,0.0454196,140.42,140.37,0.0474142]
[1763391922300,3.26,140.55,140.39,18.28341468]
[1763391922694,6.4099,140.54,140.39,64.29951468]
[1763391922898,3.26,140.55,140.39,24.69951468]
[1763391923104,3.26,140.55,140.39,18.28341468]
[1763391923406,3.3057791,140.48,140.35,18.28341468]
[1763391923704,6.4137,140.45,140.35,18.28341468]
[1763391923893,3.26,140.48,140.26,62.0]
[1763391924099,3.26,140.44,140.26,18.28341468]
[1763391924299,6.4149,140.43,140.26,18.28341468]
[1763391924606,0.05362932,140.36,140.33,0.04795617]
[1763391924903,0.05026062,140.36,140.33,0.05476943]
[1763391927010,3.26,140.49,140.34,63.42]
[1763391927208,3.26,140.54,140.36,18.28341468]
[1763391927594,3.34,140.52,140.36,18.28341468]
[1763391928005,3.34,140.52,140.43,0.05230883]
[1763391928006,3.38598439,140.45,140.43,0.05230883]
[1763391928205,3.38598439,140.45,140.33,18.28341468]
[1763391928206,3.34,140.45,140.33,18.28341468]
[1763391928403,9.7537,140.45,140.33,18.28341468]
[1763391928600,3.34,140.52,140.33,18.28341468]
[1763391928798,3.34,140.51,140.33,18.28341468]
[1763391929100,117.99861468,140.53,140.41,0.04676034]
[1763391929101,0.05309353,140.43,140.41,0.04676034]
[1763391929300,0.04950413,140.43,140.41,0.04625521]
[1763391930202,3.34,140.51,140.41,0.04625521]
[1763391930401,3.34,140.51,140.37,18.28341468]
[1763391930402,3.34,140.56,140.37,18.28341468]
[1763391930701,23.57987468,140.57,140.37,18.28341468]
[1763391930702,3.34,140.51,140.37,18.28341468]
[1763391930907,3.34,140.56,140.37,18.28341468]
[1763391931210,0.04651073,140.48,140.45,0.05458638]
[1763391931417,0.04980754,140.48,140.45,0.04633142]
[1763391933007,5.29646,140.57,140.45,18.3297461]
[1763391933312,5.29646,140.57,140.47,6.4124]
[1763391933710,5.29646,140.57,140.45,18.28341468]
[1763391933916,5.29646,140.57,140.5,6.4112]
[1763391934103,0.05039679,140.55,140.52,0.05438435]
[1763391934715,5.29646,140.57,140.52,0.05438435]
[1763391934904,9.7436,140.68,140.53,18.28341468]
[1763391935103,3.34,140.68,140.53,18.28341468]
[1763391935309,3.34,140.68,140.5,18.28341468]
[1763391935506,18.28341468,140.69,140.5,18.28341468]
[1763391935507,3.34,140.64,140.5,18.28341468]
[1763391935709,3.38667675,140.58,140.56,0.04843583]
[1763391936013,3.38667675,140.58,140.46,18.28341468]
[1763391936014,4.76,140.57,140.46,18.28341468]
[1763391936212,3.34,140.57,140.46,18.28341468]
[1763391936413,3.34,140.57,140.42,18.28341468]
[1763391936714,6.41,140.54,140.42,18.28341468]
[1763391936912,0.00066169,140.49,140.47,0.0525228]
[1763391937110,6.4072,140.6,140.49,6.4115]
[1763391937311,3.34,140.64,140.46,18.28341468]
[1763391937811,3.34,140.61,140.46,18.28341468]
[1763391938011,0.049246,140.55,140.52,0.04732718]
[1763391938220,0.05213246,140.55,140.52,0.05324506]
[1763391938816,3.34,140.66,140.53,18.28341468]
[1763391939203,3.34,140.65,140.52,18.28341468]
[1763391939614,3.34,140.63,140.42,39.58]
[1763391939812,3.34,140.63,140.44,18.28341468]
[1763391939813,3.34,140.58,140.44,18.28341468]
[1763391940013,0.05376057,140.54,140.51,0.04715697]
[1763391940215,3.39376057,140.54,140.34,189.6242275]
[1763391940513,3.34,140.54,140.4,18.28341468]
[1763391940711,6.4108,140.52,140.4,24.69921468]
[1763391940904,3.34,140.54,140.4,18.28341468]
[1763391941308,0.04914401,140.48,140.46,0.04505595]
[1763391941516,0.04762462,140.48,140.46,0.04520919]
[1763391941712,6.46022462,140.48,140.46,0.04520919]
[1763391941910,3.38762462,140.48,140.38,18.28341468]
[1763391942218,92.614,140.68,140.38,18.28341468]
[1763391942219,6.4112,140.51,140.38,24.69991468]
[1763391942421,6.4112,140.51,140.38,18.28341468]
[1763391942620,3.34,140.53,140.38,18.28341468]
[1763391942812,6.413,140.47,140.38,18.28341468]
[1763391943008,0.05183366,140.44,140.41,0.04861333]
[1763391944719,3.39183366,140.44,140.41,0.04861333]
[1763391945216,0.05183366,140.44,140.41,0.04861333]
[1763391946013,3.39183366,140.44,140.41,0.04861333]
[1763391946414,0.05183366,140.44,140.41,0.04861333]
[1763391946812,3.39183366,140.44,140.41,0.04861333]
[1763391947319,0.05183366,140.44,140.41,0.04861333]
[1763391947623,0.05183366,140.44,140.43,6.4146]
[1763391947811,0.05183366,140.44,140.41,0.04861333]
[1763391948727,3.39183366,140.44,140.41,0.04861333]
[1763391949025,3.39183366,140.44,140.3,31.64012498]
[1763391949213,3.34,140.44,140.3,31.64012498]
[1763391949921,0.04940366,140.38,140.36,0.05369153]
[1763391950122,0.04897291,140.38,140.36,0.05369153]
[1763391950509,3.38897291,140.38,140.36,0.05369153]
[1763391950731,3.38897291,140.38,140.26,31.64012498]
[1763391950922,3.34,140.38,140.25,39.56]
[1763391951311,3.34,140.38,140.25,39.54]
[1763391951511,3.34,140.42,140.27,31.64012498]
[1763391951822,0.04808178,140.36,140.33,0.04547053]
[1763391952019,3.38675909,140.36,140.33,0.0545501]
[1763391952217,0.04675909,140.36,140.33,0.0545501]
[1763391953030,3.38675909,140.36,140.33,0.0545501]
[1763391953520,3.38675909,140.36,140.24,93.64012498]
[1763391953721,3.34,140.36,140.24,93.64012498]
[1763391954131,3.34,140.4,140.24,93.64012498]
[1763391954429,0.0475547,140.33,140.31,0.04606167]
[1763391954722,0.05249362,140.33,140.31,0.04868926]
[1763391954923,39.54,140.48,140.32,31.64012498]
[1763391954924,3.34,140.48,140.32,31.64012498]
[1763391955519,3.34,140.42,140.28,31.64012498]
[1763391955920,0.05349319,140.36,140.34,0.04712534]
[1763391956122,3.34,140.46,140.34,0.04712534]
[1763391956319,3.34,140.46,140.28,44.48272498]
[1763391956320,3.34,140.46,140.29,99.8819]
[1763391956621,3.34,140.46,140.32,31.64012498]
[1763391957122,0.04502295,140.4,140.38,6.46454471]
[1763391957324,3.34,140.46,140.38,0.04794471]
[1763391958331,0.04853551,140.43,140.38,6.46474471]
[1763391958529,0.04853551,140.43,140.38,0.04794471]
[1763391958732,9.64343551,140.43,140.38,0.04794471]
[1763391958926,3.18,140.42,140.38,0.04794471]
[1763391959530,3.18,140.41,140.38,0.04794471]
[1763391960116,3.18,140.41,140.29,31.64012498]
[1763391960727,3.18,140.41,140.29,71.18012498]
[1763391961025,0.05452052,140.36,140.34,0.05463744]
[1763391961234,3.18,140.5,140.35,1.42]
[1763391961421,3.18,140.5,140.33,31.64012498]
[1763391961617,3.18,140.5,140.33,137.67436168]
[1763391961822,3.18,140.5,140.37,31.64012498]
[1763391962229,3.18,140.56,140.41,31.64012498]
[1763391962426,3.18,140.54,140.42,0.05311718]
[1763391962626,3.18,140.54,140.37,31.64012498]
[1763391962837,9.592,140.49,140.47,0.04573338]
[1763391963030,0.04823922,140.47,140.37,31.64012498]
[1763391963226,0.04823922,140.47,140.29,13.47729738]
[1763391963227,3.23322411,140.43,140.41,0.04840877]
[1763391963423,3.18,140.48,140.33,31.64012498]
[1763391964028,3.18,140.48,140.26,5.35379]
[1763391964029,3.18,140.38,140.26,5.35379]
[1763391964428,3.22893023,140.33,140.31,0.05148825]
[1763391964638,3.18,140.38,140.26,5.35379]
[1763391964832,181.09135203,140.55,140.31,0.05019479]
[1763391964833,0.04606072,140.33,140.31,0.05019479]
[1763391965128,31.64012498,140.49,140.26,11.5371267]
[1763391965129,3.18,140.39,140.26,11.5371267]
[1763391965332,3.18,140.48,140.29,31.64012498]
[1763391965633,3.18,140.44,140.3,39.56]
[1763391965934,3.18,140.37,140.36,0.04758154]
[1763391966138,0.05361626,140.38,140.35,0.05253447]
[1763391966338,0.0501919,140.38,140.35,0.04961955]
[1763391967144,3.18,140.48,140.39,6.4163]
[1763391967328,3.18,140.48,140.33,31.64012498]
[1763391968030,0.05278531,140.42,140.39,0.05442928]
[1763391968337,3.18,140.53,140.41,31.64012498]
[1763391968736,3.18,140.53,140.45,6.4134]
[1763391968938,3.18,140.53,140.39,39.58]
[1763391969139,0.05281494,140.47,140.45,0.05118356]
[1763391969441,0.05217002,140.47,140.45,0.05118356]
[1763391969640,0.05217002,140.47,140.45,1.47118356]
[1763391969829,0.05217002,140.47,140.45,7.88458356]
[1763391970144,0.05217002,140.47,140.45,6.46458356]
[1763391970341,0.05217002,140.47,140.45,0.05118356]
[1763391971632,0.05217002,140.47,140.45,6.46468356]
[1763391971835,0.05217002,140.47,140.45,7.88468356]
[1763391972130,0.05217002,140.47,140.45,0.05118356]
[1763391972331,0.05217002,140.47,140.45,1.47118356]
[1763391972530,9.5879,140.58,140.46,1.42]
[1763391972739,3.18,140.58,140.45,31.64012498]
[1763391972930,169.48712498,140.68,140.45,31.64012498]
[1763391972931,3.18,140.61,140.45,31.64012498]
[1763391973440,3.18,140.61,140.52,0.0507338]
[1763391973441,3.18,140.53,140.52,0.0507338]